[Event "Titled Tuesday Blitz June 13 Late 2023"]
[White "Garmendiarov"]
[Black "rikchessmx"]
[WhiteElo "2360"]
[BlackElo "2284"]
[Result "0-1"]
[Round "8"]
[TimeControl "180+2"]
[Date "2023.06.13"]
[WhiteClock "0:00:07"]
[BlackClock "0:01:04"]
[Board "135"]

1. d4 {[%clk 0:03:00]}  Nf6 {[%clk 0:02:53]} 2. Bf4 {[%clk 0:03:01]}  h5 {[%clk 0:02:53]} 3. Nc3 {[%clk 0:02:58]}  e6 {[%clk 0:02:52]} 4. e4 {[%clk 0:02:57]}  Bb4 {[%clk 0:02:51]} 5. Bd3 {[%clk 0:02:55]}  d5 {[%clk 0:02:51]} 6. e5 {[%clk 0:02:51]}  Nfd7 {[%clk 0:02:50]} 7. Nf3 {[%clk 0:02:48]}  c5 {[%clk 0:02:50]} 8. a3 {[%clk 0:02:46]}  Ba5 {[%clk 0:02:47]} 9. O-O {[%clk 0:02:28]}  c4 {[%clk 0:02:44]} 10. Be2 {[%clk 0:02:28]}  Nc6 {[%clk 0:02:40]} 11. Re1 {[%clk 0:02:14]}  Ne7 {[%clk 0:02:35]} 12. Bd2 {[%clk 0:02:01]}  a6 {[%clk 0:02:02]} 13. b4 {[%clk 0:01:38]}  Bb6 {[%clk 0:01:58]} 14. h4 {[%clk 0:01:14]}  Nf5 {[%clk 0:01:56]} 15. Bg5 {[%clk 0:01:10]}  f6 {[%clk 0:01:56]} 16. exf6 {[%clk 0:01:10]}  gxf6 {[%clk 0:01:57]} 17. Bf4 {[%clk 0:01:05]}  Kf7 {[%clk 0:01:50]} 18. Bf1 {[%clk 0:00:59]}  Nf8 {[%clk 0:01:49]} 19. Na4 {[%clk 0:00:54]}  Ng6 {[%clk 0:01:44]} 20. Nxb6 {[%clk 0:00:45]}  Qxb6 {[%clk 0:01:43]} 21. Bg3 {[%clk 0:00:34]}  Bd7 {[%clk 0:01:37]} 22. c3 {[%clk 0:00:32]}  Rag8 {[%clk 0:01:34]} 23. Kh2 {[%clk 0:00:27]}  Nxg3 {[%clk 0:01:33]} 24. fxg3 {[%clk 0:00:28]}  Qc7 {[%clk 0:01:33]} 25. Qd2 {[%clk 0:00:10]}  Nxh4 {[%clk 0:01:26]} 26. Nxh4 {[%clk 0:00:06]}  Qxg3+ {[%clk 0:01:25]} 27. Kg1 {[%clk 0:00:06]}  Qxh4 {[%clk 0:01:24]} 28. Qf2 {[%clk 0:00:06]}  Qxf2+ {[%clk 0:01:23]} 29. Kxf2 {[%clk 0:00:07]}  h4 {[%clk 0:01:21]} 30. Be2 {[%clk 0:00:07]}  Rg3 {[%clk 0:01:21]} 31. Bf3 {[%clk 0:00:07]}  Rhg8 {[%clk 0:01:20]} 32. Rh1 {[%clk 0:00:07]}  Rh8 {[%clk 0:01:18]} 33. Rh3 {[%clk 0:00:07]}  Rxh3 {[%clk 0:01:17]} 34. gxh3 {[%clk 0:00:08]}  Rg8 {[%clk 0:01:15]} 35. Rg1 {[%clk 0:00:07]}  Rxg1 {[%clk 0:01:13]} 36. Kxg1 {[%clk 0:00:08]}  Kg6 {[%clk 0:01:13]} 37. Kf2 {[%clk 0:00:08]}  Kg5 {[%clk 0:01:13]} 38. Ke3 {[%clk 0:00:08]}  Bc6 {[%clk 0:01:13]} 39. Bg2 {[%clk 0:00:07]}  e5 {[%clk 0:01:13]} 40. Bf3 {[%clk 0:00:05]}  e4 {[%clk 0:01:11]} 41. Be2 {[%clk 0:00:05]}  f5 {[%clk 0:01:11]} 42. Bf1 {[%clk 0:00:05]}  f4+ {[%clk 0:01:11]} 43. Kf2 {[%clk 0:00:05]}  Bd7 {[%clk 0:01:11]} 44. Bg2 {[%clk 0:00:05]}  Bf5 {[%clk 0:01:10]} 45. Bf1 {[%clk 0:00:05]}  b5 {[%clk 0:01:10]} 46. Bg2 {[%clk 0:00:05]}  e3+ {[%clk 0:01:10]} 47. Ke2 {[%clk 0:00:05]}  Be4 {[%clk 0:01:06]} 48. Bxe4 {[%clk 0:00:03]}  dxe4 {[%clk 0:01:06]} 49. Ke1 {[%clk 0:00:04]}  Kf5 {[%clk 0:01:05]} 50. Ke2 {[%clk 0:00:04]}  Ke6 {[%clk 0:01:06]} 51. Ke1 {[%clk 0:00:05]}  f3 {[%clk 0:01:04]} 52. Kf1 {[%clk 0:00:05]}  Kf5 {[%clk 0:01:04]} 53. Ke1 {[%clk 0:00:05]}  Kf4 {[%clk 0:01:04]} 54. Kf1 {[%clk 0:00:06]}  e2+ {[%clk 0:01:03]} 55. Kf2 {[%clk 0:00:06]}  e3+ {[%clk 0:01:03]} 56. Ke1 {[%clk 0:00:06]}  Ke4 {[%clk 0:01:03]} 57. d5 {[%clk 0:00:05]}  Kxd5 {[%clk 0:01:03]} 58. a4 {[%clk 0:00:06]}  bxa4 {[%clk 0:01:03]} 59. b5 {[%clk 0:00:07]}  a3 {[%clk 0:01:03]} 60. b6 {[%clk 0:00:07]}  a2 {[%clk 0:01:03]} 61. b7 {[%clk 0:00:07]}  a1=Q# {[%clk 0:01:04]} 0-1


[Site "https://www.chess.com"]

[Event "Titled Tuesday Blitz June 13 Late 2023"]
[White "Ardila, Oscar Humberto"]
[Black "Wang, Alexander J"]
[WhiteFideId "4404742"]
[BlackFideId "30955270"]
[WhiteElo "1912"]
[BlackElo "2238"]
[Result "0-1"]
[Round "8"]
[TimeControl "180+2"]
[Date "2023.06.13"]
[WhiteClock "0:00:15"]
[BlackClock "0:00:42"]
[Board "136"]

1. a3 {[%clk 0:03:00]}  d5 {[%clk 0:02:59]} 2. h3 {[%clk 0:03:01]}  e5 {[%clk 0:02:59]} 3. d3 {[%clk 0:03:00]}  c5 {[%clk 0:02:59]} 4. Nd2 {[%clk 0:03:00]}  Nc6 {[%clk 0:02:59]} 5. e4 {[%clk 0:03:01]}  dxe4 {[%clk 0:02:58]} 6. dxe4 {[%clk 0:03:01]}  Be6 {[%clk 0:02:47]} 7. Bb5 {[%clk 0:03:00]}  Qb6 {[%clk 0:02:41]} 8. Qe2 {[%clk 0:02:55]}  a6 {[%clk 0:02:40]} 9. Ba4 {[%clk 0:02:52]}  Nf6 {[%clk 0:02:29]} 10. Ngf3 {[%clk 0:02:51]}  Be7 {[%clk 0:02:27]} 11. Nxe5 {[%clk 0:02:49]}  O-O {[%clk 0:02:23]} 12. Bxc6 {[%clk 0:02:45]}  bxc6 {[%clk 0:02:24]} 13. O-O {[%clk 0:02:44]}  Qc7 {[%clk 0:02:10]} 14. Ndc4 {[%clk 0:02:41]}  Nd7 {[%clk 0:01:50]} 15. Bf4 {[%clk 0:02:38]}  Nxe5 {[%clk 0:01:48]} 16. Nxe5 {[%clk 0:01:30]}  Bd6 {[%clk 0:01:37]} 17. Nxf7 {[%clk 0:01:17]}  Bxf4 {[%clk 0:01:26]} 18. e5 {[%clk 0:01:13]}  Rxf7 {[%clk 0:01:22]} 19. Rfe1 {[%clk 0:01:12]}  Raf8 {[%clk 0:01:20]} 20. g3 {[%clk 0:01:12]}  Bh6 {[%clk 0:01:18]} 21. f4 {[%clk 0:01:12]}  Qb6 {[%clk 0:01:11]} 22. c3 {[%clk 0:01:06]}  c4+ {[%clk 0:01:11]} 23. Kh2 {[%clk 0:01:07]}  g6 {[%clk 0:01:07]} 24. Rad1 {[%clk 0:01:04]}  Bd5 {[%clk 0:01:04]} 25. Rd4 {[%clk 0:01:02]}  Rb7 {[%clk 0:01:00]} 26. Rd2 {[%clk 0:00:54]}  Bg7 {[%clk 0:01:00]} 27. Red1 {[%clk 0:00:51]}  Qc5 {[%clk 0:00:59]} 28. Rd4 {[%clk 0:00:43]}  Re8 {[%clk 0:00:58]} 29. R1d2 {[%clk 0:00:42]}  h5 {[%clk 0:00:55]} 30. g4 {[%clk 0:00:37]}  hxg4 {[%clk 0:00:55]} 31. Qxg4 {[%clk 0:00:37]}  Kf7 {[%clk 0:00:54]} 32. f5 {[%clk 0:00:34]}  gxf5 {[%clk 0:00:51]} 33. Qxf5+ {[%clk 0:00:34]}  Kg8 {[%clk 0:00:51]} 34. Rg4 {[%clk 0:00:27]}  Rf7 {[%clk 0:00:48]} 35. Qc2 {[%clk 0:00:21]}  Kf8 {[%clk 0:00:46]} 36. Rgd4 {[%clk 0:00:16]}  Bxe5+ {[%clk 0:00:45]} 37. Kg1 {[%clk 0:00:16]}  Rg7+ {[%clk 0:00:44]} 38. Kf1 {[%clk 0:00:15]}  Bxd4 {[%clk 0:00:43]} 39. cxd4 {[%clk 0:00:15]}  Qe7 {[%clk 0:00:43]} 40. Rf2+ {[%clk 0:00:15]}  Rf7 {[%clk 0:00:43]} 41. Qg6 {[%clk 0:00:15]}  Qe1# {[%clk 0:00:42]} 0-1


[Site "https://www.chess.com"]

[Event "Titled Tuesday Blitz June 13 Late 2023"]
[White "Powell, Paul"]
[Black "Kostiukov, Alexandr"]
[WhiteFideId "2005840"]
[BlackFideId "14108100"]
[WhiteElo "2158"]
[BlackElo "2202"]
[Result "1-0"]
[Round "8"]
[TimeControl "180+2"]
[Date "2023.06.13"]
[WhiteClock "0:00:44"]
[BlackClock "0:00:19"]
[Board "139"]

1. d4 {[%clk 0:02:59]}  g6 {[%clk 0:02:55]} 2. Nf3 {[%clk 0:02:59]}  Bg7 {[%clk 0:02:56]} 3. Bf4 {[%clk 0:02:59]}  d6 {[%clk 0:02:56]} 4. e3 {[%clk 0:02:59]}  Nc6 {[%clk 0:02:57]} 5. Be2 {[%clk 0:02:55]}  e5 {[%clk 0:02:57]} 6. Bg3 {[%clk 0:02:54]}  Qe7 {[%clk 0:02:56]} 7. O-O {[%clk 0:02:54]}  Nf6 {[%clk 0:02:56]} 8. h3 {[%clk 0:02:52]}  Ne4 {[%clk 0:02:54]} 9. c3 {[%clk 0:02:47]}  Nxg3 {[%clk 0:02:53]} 10. fxg3 {[%clk 0:02:47]}  O-O {[%clk 0:02:51]} 11. Nbd2 {[%clk 0:02:42]}  e4 {[%clk 0:02:49]} 12. Nh2 {[%clk 0:02:41]}  f5 {[%clk 0:02:48]} 13. g4 {[%clk 0:02:32]}  Qg5 {[%clk 0:02:42]} 14. Rf4 {[%clk 0:02:22]}  fxg4 {[%clk 0:02:42]} 15. Rxf8+ {[%clk 0:02:16]}  Bxf8 {[%clk 0:02:38]} 16. Nxg4 {[%clk 0:02:14]}  Bxg4 {[%clk 0:02:36]} 17. Bxg4 {[%clk 0:02:14]}  Qxe3+ {[%clk 0:02:36]} 18. Kh1 {[%clk 0:02:14]}  Re8 {[%clk 0:02:00]} 19. Nc4 {[%clk 0:02:06]}  Qg3 {[%clk 0:01:52]} 20. Qf1 {[%clk 0:01:55]}  d5 {[%clk 0:01:47]} 21. Na3 {[%clk 0:01:40]}  Bd6 {[%clk 0:01:46]} 22. Qg1 {[%clk 0:01:28]}  Re7 {[%clk 0:01:34]} 23. Nb5 {[%clk 0:01:28]}  Bf4 {[%clk 0:01:33]} 24. Rf1 {[%clk 0:01:27]}  a6 {[%clk 0:01:30]} 25. Na3 {[%clk 0:01:20]}  Kg7 {[%clk 0:01:29]} 26. Nc2 {[%clk 0:01:17]}  h5 {[%clk 0:01:24]} 27. Bc8 {[%clk 0:01:15]}  Nd8 {[%clk 0:01:13]} 28. c4 {[%clk 0:00:55]}  c6 {[%clk 0:01:10]} 29. cxd5 {[%clk 0:00:55]}  cxd5 {[%clk 0:01:10]} 30. Nb4 {[%clk 0:00:54]}  Rc7 {[%clk 0:00:46]} 31. Nxd5 {[%clk 0:00:53]}  Rxc8 {[%clk 0:00:41]} 32. Nxf4 {[%clk 0:00:53]}  Rc2 {[%clk 0:00:39]} 33. d5 {[%clk 0:00:47]}  Rxb2 {[%clk 0:00:35]} 34. Qd4+ {[%clk 0:00:45]}  Kh7 {[%clk 0:00:19]} 35. Qxb2 {[%clk 0:00:44]} 1-0


[Site "https://www.chess.com"]

[Event "Titled Tuesday Blitz June 13 Late 2023"]
[White "deloewre"]
[Black "Celestino, Rafael Teixeira"]
[BlackFideId "2108925"]
[WhiteElo "2122"]
[BlackElo "2256"]
[Result "1-0"]
[Round "8"]
[TimeControl "180+2"]
[Date "2023.06.13"]
[WhiteClock "0:01:16"]
[BlackClock "0:00:36"]
[Board "140"]

1. c4 {[%clk 0:03:00]}  b5 {[%clk 0:02:58]} 2. cxb5 {[%clk 0:02:59]}  a6 {[%clk 0:02:58]} 3. e4 {[%clk 0:02:54]}  e5 {[%clk 0:02:56]} 4. Nc3 {[%clk 0:02:50]}  Bb4 {[%clk 0:02:55]} 5. Nf3 {[%clk 0:02:46]}  d6 {[%clk 0:02:54]} 6. bxa6 {[%clk 0:02:44]}  Bxa6 {[%clk 0:02:53]} 7. Bxa6 {[%clk 0:02:42]}  Nxa6 {[%clk 0:02:52]} 8. d4 {[%clk 0:02:36]}  exd4 {[%clk 0:02:38]} 9. Qxd4 {[%clk 0:02:34]}  Nf6 {[%clk 0:02:38]} 10. O-O {[%clk 0:02:31]}  O-O {[%clk 0:02:35]} 11. Bg5 {[%clk 0:02:29]}  Bc5 {[%clk 0:02:31]} 12. Bxf6 {[%clk 0:02:16]}  gxf6 {[%clk 0:02:20]} 13. Qd2 {[%clk 0:02:09]}  Kh8 {[%clk 0:02:13]} 14. Qh6 {[%clk 0:02:05]}  Rg8 {[%clk 0:02:12]} 15. Nd5 {[%clk 0:02:00]}  Rg6 {[%clk 0:02:12]} 16. Qh5 {[%clk 0:01:53]}  Qg8 {[%clk 0:01:31]} 17. Nh4 {[%clk 0:01:45]}  Rg5 {[%clk 0:01:20]} 18. Qf3 {[%clk 0:01:43]}  Bd4 {[%clk 0:01:09]} 19. Nf5 {[%clk 0:01:34]}  Nc5 {[%clk 0:00:41]} 20. Nxd4 {[%clk 0:01:30]}  Re8 {[%clk 0:00:41]} 21. Nxf6 {[%clk 0:01:22]}  Qf8 {[%clk 0:00:37]} 22. Nxe8 {[%clk 0:01:20]}  Qxe8 {[%clk 0:00:38]} 23. Qf6+ {[%clk 0:01:18]}  Rg7 {[%clk 0:00:36]} 24. Nf5 {[%clk 0:01:16]} 1-0


[Site "https://www.chess.com"]

[Event "Titled Tuesday Blitz June 13 Late 2023"]
[White "Vargas, Mauricio"]
[Black "Sariego Figueredo, Wilfredo"]
[WhiteFideId "4404572"]
[BlackFideId "3500080"]
[WhiteElo "1986"]
[BlackElo "2309"]
[Result "0-1"]
[Round "8"]
[TimeControl "180+2"]
[Date "2023.06.13"]
[WhiteClock "0:00:00"]
[BlackClock "0:01:07"]
[Board "142"]

1. d4 {[%clk 0:02:59]}  d5 {[%clk 0:02:58]} 2. g3 {[%clk 0:02:58]}  Nf6 {[%clk 0:02:55]} 3. Bg2 {[%clk 0:02:44]}  c6 {[%clk 0:02:55]} 4. Bg5 {[%clk 0:02:33]}  Bf5 {[%clk 0:02:52]} 5. Bxf6 {[%clk 0:02:31]}  exf6 {[%clk 0:02:52]} 6. e3 {[%clk 0:02:31]}  Nd7 {[%clk 0:02:50]} 7. Nd2 {[%clk 0:02:26]}  Bd6 {[%clk 0:02:40]} 8. Ne2 {[%clk 0:02:25]}  O-O {[%clk 0:02:40]} 9. O-O {[%clk 0:02:23]}  Nb6 {[%clk 0:02:41]} 10. b3 {[%clk 0:02:18]}  Re8 {[%clk 0:02:36]} 11. c4 {[%clk 0:02:17]}  Bb4 {[%clk 0:02:32]} 12. c5 {[%clk 0:01:47]}  Bxd2 {[%clk 0:02:24]} 13. Qxd2 {[%clk 0:01:44]}  Nd7 {[%clk 0:02:24]} 14. h3 {[%clk 0:01:39]}  Rc8 {[%clk 0:02:19]} 15. g4 {[%clk 0:01:22]}  Be4 {[%clk 0:02:16]} 16. f3 {[%clk 0:01:21]}  Bg6 {[%clk 0:02:15]} 17. h4 {[%clk 0:01:19]}  h6 {[%clk 0:02:14]} 18. h5 {[%clk 0:01:17]}  Bh7 {[%clk 0:02:13]} 19. Rae1 {[%clk 0:01:13]}  f5 {[%clk 0:02:10]} 20. Ng3 {[%clk 0:01:01]}  fxg4 {[%clk 0:01:50]} 21. fxg4 {[%clk 0:00:58]}  Qc7 {[%clk 0:01:43]} 22. Qf2 {[%clk 0:00:56]}  Nf6 {[%clk 0:01:36]} 23. Bh3 {[%clk 0:00:36]}  Rcd8 {[%clk 0:01:26]} 24. Nf5 {[%clk 0:00:26]}  Bxf5 {[%clk 0:01:19]} 25. gxf5 {[%clk 0:00:20]}  Nxh5 {[%clk 0:01:14]} 26. Qg2 {[%clk 0:00:10]}  Qg3 {[%clk 0:01:11]} 27. Bg4 {[%clk 0:00:00]}  Qxg2+ {[%clk 0:01:07]} 0-1


[Site "https://www.chess.com"]

[Event "Titled Tuesday Blitz June 13 Late 2023"]
[White "Sarana, Alexey"]
[Black "Duda, Jan-Krzysztof"]
[WhiteFideId "24133795"]
[BlackFideId "1170546"]
[WhiteElo "2714"]
[BlackElo "2783"]
[Result "0-1"]
[Round "9"]
[TimeControl "180+2"]
[Date "2023.06.13"]
[WhiteClock "0:00:00"]
[BlackClock "0:00:03"]
[Board "1"]

1. d4 {[%clk 0:03:00]}  Nf6 {[%clk 0:02:59]} 2. c4 {[%clk 0:03:01]}  g6 {[%clk 0:03:00]} 3. Nc3 {[%clk 0:03:01]}  d5 {[%clk 0:02:59]} 4. Bf4 {[%clk 0:02:59]}  Bg7 {[%clk 0:02:59]} 5. e3 {[%clk 0:03:00]}  O-O {[%clk 0:02:59]} 6. Rc1 {[%clk 0:02:59]}  Be6 {[%clk 0:02:55]} 7. c5 {[%clk 0:02:52]}  c6 {[%clk 0:02:51]} 8. h3 {[%clk 0:02:52]}  b6 {[%clk 0:02:34]} 9. b4 {[%clk 0:02:51]}  a5 {[%clk 0:02:34]} 10. a3 {[%clk 0:02:44]}  axb4 {[%clk 0:02:27]} 11. axb4 {[%clk 0:02:45]}  bxc5 {[%clk 0:02:21]} 12. bxc5 {[%clk 0:02:46]}  Ra3 {[%clk 0:02:22]} 13. Bd3 {[%clk 0:02:39]}  Na6 {[%clk 0:02:20]} 14. Nge2 {[%clk 0:02:28]}  Nb4 {[%clk 0:02:17]} 15. Bb1 {[%clk 0:02:28]}  Qa5 {[%clk 0:02:15]} 16. O-O {[%clk 0:02:27]}  Ra8 {[%clk 0:02:14]} 17. Be5 {[%clk 0:02:25]}  Bc8 {[%clk 0:02:04]} 18. Qd2 {[%clk 0:02:22]}  Ba6 {[%clk 0:01:45]} 19. Rfd1 {[%clk 0:02:17]}  Bc4 {[%clk 0:01:44]} 20. Ng3 {[%clk 0:02:09]}  Bf8 {[%clk 0:01:36]} 21. e4 {[%clk 0:01:54]}  dxe4 {[%clk 0:01:26]} 22. Ngxe4 {[%clk 0:01:55]}  Nd7 {[%clk 0:01:17]} 23. Bf4 {[%clk 0:01:47]}  Nd5 {[%clk 0:01:15]} 24. Nxd5 {[%clk 0:01:23]}  Bxd5 {[%clk 0:01:15]} 25. Nc3 {[%clk 0:01:23]}  Nf6 {[%clk 0:01:09]} 26. Be5 {[%clk 0:01:07]}  Bg7 {[%clk 0:01:09]} 27. Qe1 {[%clk 0:00:56]}  Bb3 {[%clk 0:00:52]} 28. Rd3 {[%clk 0:00:55]}  Bh6 {[%clk 0:00:52]} 29. f4 {[%clk 0:00:50]}  Nh5 {[%clk 0:00:30]} 30. Ne2 {[%clk 0:00:39]}  Qxe1+ {[%clk 0:00:27]} 31. Rxe1 {[%clk 0:00:40]}  Bc4 {[%clk 0:00:26]} 32. Rxa3 {[%clk 0:00:34]}  Rxa3 {[%clk 0:00:27]} 33. g4 {[%clk 0:00:24]}  Ng3 {[%clk 0:00:21]} 34. Nxg3 {[%clk 0:00:21]}  Rxg3+ {[%clk 0:00:22]} 35. Kh2 {[%clk 0:00:21]}  Rb3 {[%clk 0:00:22]} 36. Be4 {[%clk 0:00:21]}  f6 {[%clk 0:00:20]} 37. Bc7 {[%clk 0:00:20]}  Rb7 {[%clk 0:00:18]} 38. Bb6 {[%clk 0:00:20]}  Bxf4+ {[%clk 0:00:18]} 39. Kg2 {[%clk 0:00:21]}  Rd7 {[%clk 0:00:14]} 40. Bxc6 {[%clk 0:00:20]}  Rxd4 {[%clk 0:00:14]} 41. Rxe7 {[%clk 0:00:20]}  Rd2+ {[%clk 0:00:10]} 42. Kf3 {[%clk 0:00:18]}  Be5 {[%clk 0:00:10]} 43. Bc7 {[%clk 0:00:13]}  Rd3+ {[%clk 0:00:08]} 44. Kg2 {[%clk 0:00:12]}  Rg3+ {[%clk 0:00:05]} 45. Kf2 {[%clk 0:00:12]}  Bxc7 {[%clk 0:00:04]} 46. Rxc7 {[%clk 0:00:12]}  Rxh3 {[%clk 0:00:05]} 47. Bf3 {[%clk 0:00:11]}  Rh2+ {[%clk 0:00:05]} 48. Ke3 {[%clk 0:00:12]}  Rc2 {[%clk 0:00:05]} 49. c6 {[%clk 0:00:12]}  Be6 {[%clk 0:00:05]} 50. Re7 {[%clk 0:00:11]}  Bxg4 {[%clk 0:00:04]} 51. Bxg4 {[%clk 0:00:05]}  Rxc6 {[%clk 0:00:05]} 52. Bf3 {[%clk 0:00:06]}  Rd6 {[%clk 0:00:05]} 53. Be2 {[%clk 0:00:05]}  Kh8 {[%clk 0:00:04]} 54. Bc4 {[%clk 0:00:04]}  Rc6 {[%clk 0:00:03]} 55. Bd5 {[%clk 0:00:05]}  Rd6 {[%clk 0:00:03]} 56. Kd4 {[%clk 0:00:05]}  Ra6 {[%clk 0:00:04]} 57. Be6 {[%clk 0:00:04]}  Ra4+ {[%clk 0:00:03]} 58. Kd5 {[%clk 0:00:04]}  h5 {[%clk 0:00:03]} 59. Rf7 {[%clk 0:00:04]}  Rf4 {[%clk 0:00:03]} 60. Kd6 {[%clk 0:00:02]}  h4 {[%clk 0:00:03]} 61. Ke7 {[%clk 0:00:03]}  g5 {[%clk 0:00:02]} 62. Kf8 {[%clk 0:00:02]}  g4 {[%clk 0:00:02]} 63. Rg7 {[%clk 0:00:02]}  Ra4 {[%clk 0:00:02]} 64. Bf7 {[%clk 0:00:01]}  Ra8+ {[%clk 0:00:02]} 65. Be8 {[%clk 0:00:01]}  Rxe8+ {[%clk 0:00:02]} 66. Kf7 {[%clk 0:00:02]}  Re7+ {[%clk 0:00:03]} 67. Kg6 {[%clk 0:00:02]}  Rxg7+ {[%clk 0:00:03]} 68. Kh5 {[%clk 0:00:00]}  g3 {[%clk 0:00:03]} 0-1


[Site "https://www.chess.com"]

[Event "Titled Tuesday Blitz June 13 Late 2023"]
[White "Korobov, Anton"]
[Black "Simonian, Hrair"]
[WhiteFideId "14105730"]
[BlackFideId "13302337"]
[WhiteElo "2638"]
[BlackElo "2447"]
[Result "1-0"]
[Round "9"]
[TimeControl "180+2"]
[Date "2023.06.13"]
[WhiteClock "0:00:57"]
[BlackClock "0:00:00"]
[Board "2"]

1. d4 {[%clk 0:02:53]}  Nf6 {[%clk 0:02:49]} 2. c4 {[%clk 0:02:53]}  e6 {[%clk 0:02:36]} 3. Nf3 {[%clk 0:02:52]}  b6 {[%clk 0:02:25]} 4. a3 {[%clk 0:02:51]}  Bb7 {[%clk 0:02:23]} 5. Nc3 {[%clk 0:02:51]}  d5 {[%clk 0:02:17]} 6. cxd5 {[%clk 0:02:51]}  Nxd5 {[%clk 0:02:11]} 7. Qc2 {[%clk 0:02:51]}  Be7 {[%clk 0:02:08]} 8. e4 {[%clk 0:02:48]}  Nxc3 {[%clk 0:02:03]} 9. bxc3 {[%clk 0:02:49]}  c5 {[%clk 0:02:03]} 10. Bb5+ {[%clk 0:02:47]}  Bc6 {[%clk 0:02:02]} 11. Bd3 {[%clk 0:02:46]}  cxd4 {[%clk 0:02:02]} 12. cxd4 {[%clk 0:02:46]}  O-O {[%clk 0:02:02]} 13. O-O {[%clk 0:02:46]}  Bb7 {[%clk 0:02:01]} 14. Qe2 {[%clk 0:02:45]}  Nc6 {[%clk 0:02:01]} 15. Bb2 {[%clk 0:02:45]}  Bf6 {[%clk 0:02:00]} 16. Rad1 {[%clk 0:02:30]}  Na5 {[%clk 0:01:51]} 17. Rfe1 {[%clk 0:02:20]}  Re8 {[%clk 0:01:49]} 18. h4 {[%clk 0:02:09]}  Bxh4 {[%clk 0:01:16]} 19. Ne5 {[%clk 0:02:05]}  Bf6 {[%clk 0:01:13]} 20. Ng4 {[%clk 0:02:05]}  Bg5 {[%clk 0:00:48]} 21. g3 {[%clk 0:02:00]}  h5 {[%clk 0:00:42]} 22. Ne5 {[%clk 0:01:59]}  g6 {[%clk 0:00:40]} 23. Bb5 {[%clk 0:01:28]}  Rf8 {[%clk 0:00:35]} 24. d5 {[%clk 0:01:22]}  exd5 {[%clk 0:00:29]} 25. exd5 {[%clk 0:01:23]}  Qf6 {[%clk 0:00:24]} 26. f4 {[%clk 0:01:17]}  Bxf4 {[%clk 0:00:00]} 27. Nd7 {[%clk 0:00:57]} 1-0


[Site "https://www.chess.com"]

[Event "Titled Tuesday Blitz June 13 Late 2023"]
[White "Swiercz, Dariusz"]
[Black "Firouzja, Alireza"]
[WhiteFideId "1126881"]
[BlackFideId "12573981"]
[WhiteElo "2620"]
[BlackElo "2896"]
[Result "0-1"]
[Round "9"]
[TimeControl "180+2"]
[Date "2023.06.13"]
[WhiteClock "0:00:06"]
[BlackClock "0:00:08"]
[Board "4"]

1. e4 {[%clk 0:03:00]}  c6 {[%clk 0:02:57]} 2. d4 {[%clk 0:02:58]}  d5 {[%clk 0:02:55]} 3. e5 {[%clk 0:02:58]}  Bf5 {[%clk 0:02:55]} 4. h4 {[%clk 0:02:59]}  h5 {[%clk 0:02:53]} 5. Bd3 {[%clk 0:02:59]}  Bxd3 {[%clk 0:02:54]} 6. Qxd3 {[%clk 0:03:00]}  e6 {[%clk 0:02:54]} 7. Nf3 {[%clk 0:02:59]}  Qa5+ {[%clk 0:02:53]} 8. Nbd2 {[%clk 0:02:59]}  Nh6 {[%clk 0:02:52]} 9. O-O {[%clk 0:02:58]}  Nf5 {[%clk 0:02:51]} 10. Nb3 {[%clk 0:02:58]}  Qa6 {[%clk 0:02:49]} 11. Qd1 {[%clk 0:02:58]}  b6 {[%clk 0:02:46]} 12. Bg5 {[%clk 0:02:53]}  c5 {[%clk 0:02:46]} 13. a4 {[%clk 0:02:37]}  Nc6 {[%clk 0:02:38]} 14. c3 {[%clk 0:02:26]}  Rc8 {[%clk 0:02:17]} 15. Re1 {[%clk 0:02:23]}  Be7 {[%clk 0:02:00]} 16. Bxe7 {[%clk 0:02:21]}  Ncxe7 {[%clk 0:02:00]} 17. g3 {[%clk 0:02:19]}  O-O {[%clk 0:01:53]} 18. Nc1 {[%clk 0:01:22]}  cxd4 {[%clk 0:01:49]} 19. cxd4 {[%clk 0:01:17]}  Nc6 {[%clk 0:01:39]} 20. Ra3 {[%clk 0:00:40]}  Qc4 {[%clk 0:01:27]} 21. Rc3 {[%clk 0:00:37]}  Qa6 {[%clk 0:01:16]} 22. Ne2 {[%clk 0:00:34]}  Nb4 {[%clk 0:01:06]} 23. Nf4 {[%clk 0:00:34]}  g6 {[%clk 0:01:01]} 24. Ng5 {[%clk 0:00:32]}  Qb7 {[%clk 0:00:34]} 25. Nxh5 {[%clk 0:00:27]}  Nc6 {[%clk 0:00:33]} 26. Nf6+ {[%clk 0:00:21]}  Kg7 {[%clk 0:00:33]} 27. Rd3 {[%clk 0:00:20]}  Qe7 {[%clk 0:00:31]} 28. Qg4 {[%clk 0:00:14]}  Nb4 {[%clk 0:00:16]} 29. Rdd1 {[%clk 0:00:11]}  Nc2 {[%clk 0:00:13]} 30. Re2 {[%clk 0:00:10]}  Rc4 {[%clk 0:00:14]} 31. Nf3 {[%clk 0:00:09]}  Qb4 {[%clk 0:00:10]} 32. h5 {[%clk 0:00:06]}  Ncxd4 {[%clk 0:00:08]} 33. Nxd4 {[%clk 0:00:05]}  Rxd4 {[%clk 0:00:06]} 34. Rxd4 {[%clk 0:00:03]}  Qxd4 {[%clk 0:00:07]} 35. Qxd4 {[%clk 0:00:03]}  Nxd4 {[%clk 0:00:08]} 36. Re3 {[%clk 0:00:03]}  gxh5 {[%clk 0:00:07]} 37. Nxh5+ {[%clk 0:00:03]}  Kh6 {[%clk 0:00:08]} 38. Nf6 {[%clk 0:00:03]}  Rc8 {[%clk 0:00:08]} 39. Kg2 {[%clk 0:00:04]}  Kg6 {[%clk 0:00:07]} 40. Rd3 {[%clk 0:00:04]}  Nc6 {[%clk 0:00:07]} 41. f4 {[%clk 0:00:04]}  Nb4 {[%clk 0:00:07]} 42. Rd1 {[%clk 0:00:03]}  Rc2+ {[%clk 0:00:06]} 43. Kf3 {[%clk 0:00:03]}  Rxb2 {[%clk 0:00:06]} 44. Rh1 {[%clk 0:00:03]}  Rb3+ {[%clk 0:00:07]} 45. Kg4 {[%clk 0:00:03]}  Nd3 {[%clk 0:00:07]} 46. Rh8 {[%clk 0:00:04]}  Nf2+ {[%clk 0:00:07]} 47. Kh4 {[%clk 0:00:04]}  Ne4 {[%clk 0:00:03]} 48. g4 {[%clk 0:00:03]}  Nxf6 {[%clk 0:00:03]} 49. exf6 {[%clk 0:00:03]}  Kxf6 {[%clk 0:00:04]} 50. Ra8 {[%clk 0:00:03]}  Rb4 {[%clk 0:00:04]} 51. Rxa7 {[%clk 0:00:03]}  Rxf4 {[%clk 0:00:04]} 52. Kg3 {[%clk 0:00:04]}  Rb4 {[%clk 0:00:04]} 53. Ra6 {[%clk 0:00:04]}  Kg5 {[%clk 0:00:05]} 54. Ra7 {[%clk 0:00:04]}  Rxg4+ {[%clk 0:00:05]} 55. Kf3 {[%clk 0:00:05]}  Rb4 {[%clk 0:00:05]} 56. Ke3 {[%clk 0:00:05]}  f5 {[%clk 0:00:06]} 57. Kd3 {[%clk 0:00:06]}  d4 {[%clk 0:00:06]} 58. Rb7 {[%clk 0:00:05]}  e5 {[%clk 0:00:06]} 59. Rg7+ {[%clk 0:00:04]}  Kf4 {[%clk 0:00:06]} 60. Rc7 {[%clk 0:00:05]}  e4+ {[%clk 0:00:06]} 61. Kc2 {[%clk 0:00:05]}  Ke3 {[%clk 0:00:06]} 62. Rf7 {[%clk 0:00:04]}  f4 {[%clk 0:00:07]} 63. Rc7 {[%clk 0:00:04]}  f3 {[%clk 0:00:07]} 64. a5 {[%clk 0:00:05]}  bxa5 {[%clk 0:00:07]} 65. Rh7 {[%clk 0:00:05]}  a4 {[%clk 0:00:07]} 66. Rh2 {[%clk 0:00:06]}  a3 {[%clk 0:00:07]} 67. Rh1 {[%clk 0:00:06]}  Rb2+ {[%clk 0:00:07]} 68. Kc1 {[%clk 0:00:07]}  f2 {[%clk 0:00:07]} 69. Rd1 {[%clk 0:00:07]}  d3 {[%clk 0:00:07]} 70. Rh1 {[%clk 0:00:07]}  Rc2+ {[%clk 0:00:07]} 71. Kb1 {[%clk 0:00:07]}  Re2 {[%clk 0:00:08]} 72. Ka1 {[%clk 0:00:08]}  Re1+ {[%clk 0:00:08]} 73. Ka2 {[%clk 0:00:06]}  Rxh1 {[%clk 0:00:08]} 0-1


[Site "https://www.chess.com"]